Entity,Pay date,Expense Type,Expense Area,Supplier,Transaction Number,Amount,Description
NS&I,25/07/2018,Unitary fee - Outsource partner,Commercial Contracts,Atos IT Services UK Ltd,4011998,"4,738,066.77",Unitary Service Charge - July 2018
NS&I,25/07/2018,Unitary fee - Outsource partner,B2B Government Payment Services,Atos IT Services UK Ltd,4011888,"1,242,608.38",Tax-Free Childcare Service Charges - May 2018
NS&I,25/07/2018,Unitary fee - Outsource partner,B2B Government Payment Services,Atos IT Services UK Ltd,4012050,"722,622.25",Help To Save Project Charges - May 2018
NS&I,25/07/2018,Unitary fee - Outsource partner,B2B Government Payment Services,Atos IT Services UK Ltd,4012040,"685,596.85",Help to save Service Charges - May 2018
NS&I,25/07/2018,Unitary fee - Outsource partner,B2B Government Payment Services,Atos IT Services UK Ltd,4011889,"384,942.91",Tax-Free Childcare Service Charges May 2018
NS&I,25/07/2018,Unitary fee - Outsource partner,B2B Government Payment Services,Atos IT Services UK Ltd,4011891,"384,942.91",30 Hours Free Childcare Service Charges May 2018
NS&I,25/07/2018,Unitary fee - Outsource partner,B2B Government Payment Services,Atos IT Services UK Ltd,4011899,"382,852.73",Tax-Free Childcare Service Charges - May 2018
NS&I,12/07/2018,Project costs - Outsource partner,Programme Delivery,Atos IT Services UK Ltd,4011866,"271,385.00",Product Enhancement Cost - May 2018
NS&I,25/07/2018,Project costs - Outsource partner,Programme Delivery,Atos IT Services UK Ltd,4012061,"252,414.00",Product Enhancement Cost - June 2018
NS&I,25/07/2018,Unitary fee - Outsource partner,B2B Government Payment Services,Atos IT Services UK Ltd,4011890,"241,802.41",30 Hours Free Childcare Service Charges May 2018
NS&I,18/07/2018,Project costs - Outsource partner,Transactional Customer Comms,Atos IT Services UK Ltd,4011902,"230,029.00",Update of forms involved in Transactions - May 2018
NS&I,18/07/2018,Unitary fee - Outsource partner,B2B Government Payment Services,Atos IT Services UK Ltd,4011922,"209,256.44",Home Office Payment Processing Service Charges - May 2018
NS&I,25/07/2018,Project costs - Outsource partner,Programme Delivery,Atos IT Services UK Ltd,4012059,"131,579.00",Open Banking  - May 2018
NS&I,25/07/2018,Unitary fee - Outsource partner,B2B Government Payment Services,Atos IT Services UK Ltd,4011900,"131,435.10",Court Funds Office Service Charges - June 2018
NS&I,18/07/2018,Consultancy services,Property & Commercial Contracts,PA Consulting Services Ltd,4011997,"108,135.00",Consultancy support for sourcing options analysis
NS&I,25/07/2018,Project costs - Outsource partner,Programme Delivery,Atos IT Services UK Ltd,4012079,"102,000.00",Transformation programme - Management cost - May 2018
NS&I,25/07/2018,Professional services - Other,IS & Information Assurance,Gartner Uk Ltd,4012066,"89,160.00",Banking and Investment Services June 2018 - May 2019
NS&I,25/07/2018,Advertising agency costs,Marketing Communications,FCB Inferno Limited,4011752,"87,441.82",Cost of Marketing Campaigns
NS&I,25/07/2018,Direct marketing,Marketing Communications,FCB Inferno Limited,4011152,"85,315.20",Cost of Marketing Campaigns
NS&I,18/07/2018,Professional services - Other,Brand,The Team Brand Communications Ltd,4012021,"85,255.32",Costs for implementation of build of Corporate Website
NS&I,12/07/2018,Project costs - Outsource partner,Programme Delivery,Atos IT Services UK Ltd,4011897,"74,013.00",Costs for delivering IT orchestration improvements - May 2018
NS&I,18/07/2018,Project costs - Outsource partner,Programme Delivery,Atos IT Services UK Ltd,4011909,"60,318.00",Costs for improving authentication process  May 2018
NS&I,12/07/2018,Training and development costs,Learning & Development,Atos IT Services UK Ltd,4011910,"56,855.00",Learner Management System 2018-2019
NS&I,04/07/2018,Project costs - Outsource partner,Programme Delivery,Atos IT Services UK Ltd,4011787,"55,865.00",Financial Adviser Website Development Costs April - May 2018
NS&I,25/07/2018,Advertising agency costs,Marketing Communications,FCB Inferno Limited,4011147,"50,640.00",Cost of Marketing Campaigns
NS&I,25/07/2018,Advertising agency costs,Marketing Communications,FCB Inferno Limited,4011148,"50,640.00",Cost of Marketing Campaigns
NS&I,25/07/2018,Advertising agency costs,Marketing Communications,FCB Inferno Limited,4012012,"50,640.00",Cost of Marketing Campaigns
NS&I,12/07/2018,Project costs - Outsource partner,Programme Delivery,Atos IT Services UK Ltd,4011825,"50,404.00",Website Improvement Costs - May 2018
NS&I,18/07/2018,Product account bank charges,Finance,HMRC (Government Banking Service),4011996,"50,000.00",HMRC GBS Management Fees Q1 2018 / 2019
NS&I,18/07/2018,Unitary fee - Outsource partner,Change Delivery,Atos IT Services UK Ltd,4011943,"49,341.00",New Product Impact Assessment Charges - Dec 17 - May 18
NS&I,25/07/2018,Project costs - Outsource partner,Programme Delivery,Atos IT Services UK Ltd,4012009,"46,892.00",Website Improvement Costs - June 2018
NS&I,04/07/2018,Project costs - Outsource partner,Programme Delivery,Atos IT Services UK Ltd,4011799,"42,307.00",Costs for improving authentication process  April 2018
NS&I,18/07/2018,Maintenance and running costs - Outsource partner,IS & Information Assurance,Atos IT Services UK Ltd,4012037,"40,836.00",Business Continuity  April - May 2018
NS&I,04/07/2018,Project costs - Outsource partner,Programme Delivery,Atos IT Services UK Ltd,4011798,"40,721.00",Costs for delivering product changes
NS&I,25/07/2018,Unitary fee - Outsource partner,B2B Government Payment Services,Atos IT Services UK Ltd,4011886,"39,167.18",Tax-Free Childcare Service Charges May 2018
NS&I,18/07/2018,Market research,Market Intelligence & Research,Discovery Research Ltd.,4012020,"36,654.00",Qualitative & quantitative research
NS&I,04/07/2018,Advertising and production,Marketing Communications,Carat (Registered as Dentsu Aegis UK Ltd),4011921,"34,300.12",Cost of Marketing Campaigns
NS&I,04/07/2018,Product account bank charges,Finance,RBSG NS&I Charges A/c,4011895,"32,123.83",RBS Quarterly Bank Charges March-June 2018
NS&I,04/07/2018,Purchasing card charges,Finance,NatWest 471505930101077,4011918,"31,871.78",Credit Card purchases - June 2018
NS&I,04/07/2018,Professional services - Other,IS & Information Assurance,Atos IT Services UK Ltd,4011836,"31,830.00",Business� continuity services for Regional Office 
NS&I,04/07/2018,Contract staff (Non-payroll),HR,IRG Advisers LLP Trading as Odgers Berndtson,4011903,"29,979.76",Non payroll staff costs
NS&I,12/07/2018,Other travel and travel services,Finance,Redfern Travel Limited,4011932,"26,856.12",Travel Data for June 2018
NS&I,12/07/2018,Project costs - Outsource partner,Programme Delivery,Atos IT Services UK Ltd,4011893,"25,795.00",Costs for delivering Payments Services Directive 2 activities May 2018
NS&I,18/07/2018,Unitary fee - Outsource partner,Commercial Contracts,Atos IT Services UK Ltd,4011952,"-72,995.10",Unitary Service adjustment  between Nov2017 - Jan 2018 - Credit Received
NS&I,18/07/2018,Unitary fee - Outsource partner,Commercial Contracts,Atos IT Services UK Ltd,4011995,"-83,381.44",Unitary Service adjustment March 2018 - Credit Received
